[Event "Orbis IM 2018"]
[Site "Paracin"]
[Date "2018.07.16"]
[Round "4"]
[White "Konaplev, Anton"]
[Black "Scott, Luke"]
[Result "1-0"]
[ECO "A05"]
[WhiteElo "2316"]
[BlackElo "1887"]
[Annotator "NA"]
[PlyCount "97"]
[EventDate "2018.??.??"]
[EventCountry "SRB"]
[SourceTitle "playchess.com"]
[Source "ChessBase"]
[SourceQuality "1"]
[TimeControl "40/5400+30:1800+30"]

1. Nf3 Nf6 2. c4 c5 3. a3 {A30: Englische Eröffnung (Symmetrische Variante)} (3. Nc3 Nc6 4. g3 d5 5. cxd5 Nxd5 6. Bg2 g6 7. O-O Bg7 8. Nxd5 Qxd5 9. d3 O-O 10. Be3 Bd7 11. Nd4 Qd6 12. Nxc6 Bxc6 13. Bxc6 Qxc6 14. Rc1 Qa6 15. Rxc5 b6 16. Rc2 Qxa2 17. b4 Qa4 18. Rc4 Qxd1 19. Rxd1 Rfc8 20. b5 Be5 {½-½ (35) So,W (2778)-Anand,V (2759) Paris 2018}) 3... Nc6 4. e3 d5 5. cxd5 Nxd5 6. d4 cxd4 $146 ({Vorgänger:} 6... e6 7. dxc5 Bxc5 8. Qc2 Bd6 9. Bd2 O-O 10. Bd3 h6 {½-½ (32) Krecak,Z (2320)-Stieger,H (2409) ICCF email 2011}) 7. Nxd4 Nxd4 8. Qxd4 Qc7 9. Bd2 Nb6 10. Nc3 e5 (10... a6 $14) 11. Qe4 a6 12. Rc1 Qd6 13. f4 f5 14. Qxe5+ Qxe5 15. fxe5 Be6 16. e4 Be7 (16... Rc8 $142) 17. exf5 Bxf5 18. Be2 (18. Be3 $18 Nd7 19. Nd5) 18... O-O 19. Bf3 Rae8 20. O-O Bc5+ 21. Kh1 Rxe5 22. Bxb7 Bd3 23. Rxf8+ Kxf8 24. Bf4 Rf5 25. g3 g5 26. Rd1 Bc2 27. Bd6+ Bxd6 28. Rxd6 Nc4 29. Re6 a5 30. Ne2 Nxb2 31. Nd4 Rf2 32. Re5 g4 33. Rxa5 Nc4 34. Ra8+ Ke7 35. Kg1 Rd2 36. Nxc2 Rxc2 37. Be4 Ra2 38. Bxh7 Ne3 39. Be4 Kf6 40. Ra5 Nc4 41. Rf5+ Ke6 42. Rc5 $16 Ne3 43. Ra5 Kd6 44. a4 Nc4 45. Rd5+ Ke7 46. Bd3 Rxa4 47. Rg5 Ra1+ 48. Kf2 Ra2+ 49. Be2 1-0

[Event "Orbis IM 2018"]
[Site "Paracin"]
[Date "2018.07.16"]
[Round "4"]
[White "Avalyan, Artur"]
[Black "Brankovic, Dejan"]
[Result "1-0"]
[ECO "E73"]
[WhiteElo "2315"]
[BlackElo "2377"]
[Annotator "NA"]
[PlyCount "65"]
[EventDate "2018.??.??"]
[EventCountry "SRB"]
[SourceTitle "playchess.com"]
[Source "ChessBase"]
[SourceQuality "1"]
[TimeControl "40/5400+30:1800+30"]

1. d4 {[%emt 0:00:00]} Nf6 {[%emt 0:00:00]} 2. c4 {[%emt 0:00:00]} g6 {[%emt 0:00:10]} 3. Nc3 {[%emt 0:00:00]} Bg7 {[%emt 0:00:07]} 4. e4 {[%emt 0:00:00]} d6 {[%emt 0:00:07]} 5. Be2 {[%emt 0:00:03]} O-O {[%emt 0:00:46]} 6. Be3 {[%emt 0:00:03]} Na6 {[%emt 0:01:12]} 7. Nf3 {[%emt 0:00:15]} e5 {[%emt 0:00:54]} 8. d5 {[%emt 0:00:07]} Ng4 {[%emt 0:00:33]} 9. Bg5 {[%emt 0:00:09]} f6 {[%emt 0:00:36]} 10. Bh4 {[%emt 0:00:04]} h5 {[%emt 0:00:52] E92: King's Indian: Classical: 6 Be2 e5: 7 dxe5, 7 Be3 and Petrosian System without 7...Nbd7} 11. Nd2 {[%emt 0:00:18]} c5 {[%emt 0:01:14]} 12. h3 {[%emt 0:02:03]} (12. a3 Qd7 13. h3 Nh6 14. Qa4 Qe7 15. b4 Nf7 16. g4 hxg4 17. hxg4 Bh6 18. Qb3 {0-1 (79) Ponomariov,R (2744)-Jobava,B (2707) Kharkov 2010}) 12... Nh6 {[%emt 0:00:18]} 13. O-O $146 {[%emt 0:00:14]} ({Predecessor:} 13. f3 Nf7 14. Bd3 Bh6 15. Qe2 Kg7 16. O-O-O Bd7 17. Rdf1 Rh8 18. Kb1 {½-½ (50) Pelletier,Y (2544)-Gallagher,J (2453) Switzerland 2018}) 13... g5 {[%emt 0:27:48]} 14. Bg3 {[%emt 0:00:15]} g4 {[%emt 0:00:03]} 15. hxg4 {[%emt 0:17:22]} hxg4 {[%emt 0:01:57]} 16. f3 {[%emt 0:18:02]} (16. a3 $16) 16... f5 {[%emt 0:02:55]} 17. fxg4 {[%emt 0:01:35]} f4 {[%emt 0:01:56]} 18. Bh2 $1 {[%emt 0:05:33]} Qg5 {[%emt 0:17:19]} 19. Nf3 {[%emt 0:02:15]} Qxg4 {[%emt 0:00:32]} 20. Nxe5 $1 {[%emt 0:05:41]} Qg5 {[%emt 0:00:18]} 21. Nf3 {[%emt 0:09:17]} Qh5 {[%emt 0:05:07]} 22. Qd2 {[%emt 0:05:40]} Ng4 {[%emt 0:11:39]} 23. Bxf4 {[%emt 0:16:31]} Bd7 {[%emt 0:08:10]} 24. Nh2 {[%emt 0:02:40]} Bd4+ {[%emt 0:00:19]} 25. Kh1 {[%emt 0:00:57]} Rf6 {[%emt 0:07:38]} 26. Bxg4 {[%emt 0:02:32]} Bxg4 {[%emt 0:00:20]} 27. e5 {[%emt 0:02:25]} dxe5 {[%emt 0:01:36]} 28. Bg5 {[%emt 0:00:37]} Rg6 {[%emt 0:04:43]} (28... Bxc3 $142 29. Qxc3 (29. bxc3 Rg6 $14) 29... Rg6) 29. Ne4 {[%emt 0:00:09]} Kh8 $2 {[%emt 0:01:40]} (29... Kg7) 30. Rf7 {[%emt 0:01:56]} Rag8 {[%emt 0:00:59]} 31. Bf6+ {[%emt 0:00:30]} Rxf6 {[%emt 0:00:05]} 32. Nxf6 $18 {[%emt 0:00:13]} Qxf7 {[%emt 0:00:18]} 33. Qh6+ {[%emt 0:00:05]} 1-0

[Event "Orbis IM 2018"]
[Site "Paracin"]
[Date "2018.07.16"]
[Round "4"]
[White "Markovic, Milan D"]
[Black "Milanovic, Slavisa"]
[Result "1/2-1/2"]
[ECO "C01"]
[WhiteElo "2312"]
[BlackElo "2370"]
[Annotator "NA"]
[PlyCount "25"]
[EventDate "2018.??.??"]
[EventCountry "SRB"]
[SourceTitle "playchess.com"]
[Source "ChessBase"]
[SourceQuality "1"]
[TimeControl "40/5400+30:1800+30"]

1. e4 {[%emt 0:01:15]} e6 {[%emt 0:05:10]} 2. d4 {[%emt 0:00:34]} d5 {[%emt 0:00:21]} 3. exd5 {[%emt 0:00:43]} exd5 {[%emt 0:00:36]} 4. Bf4 {[%emt 0:00:25]} Bd6 {[%emt 0:03:28]} 5. Bxd6 {[%emt 0:02:17]} Qxd6 {[%emt 0:00:08]} 6. c3 {[%emt 0:00:09]} Bf5 {[%emt 0:04:29]} 7. Bd3 {[%emt 0:02:09]} Bxd3 {[%emt 0:06:56]} 8. Qxd3 {[%emt 0:00:12]} Nf6 {[%emt 0:00:03]} 9. Nf3 {[%emt 0:00:27]} O-O {[%emt 0:00:32]} 10. O-O $11 {[%emt 0:00:20]} Nc6 {[%emt 0:03:56]} 11. Nbd2 {[%emt 0:00:32]} Rfe8 {[%emt 0:00:38]} 12. Rfe1 {[%emt 0:00:13]} a5 {[%emt 0:00:34]} 13. a4 {[%emt 0:01:01]} 1/2-1/2

[Event "Orbis IM 2018"]
[Site "Paracin"]
[Date "2018.07.16"]
[Round "4"]
[White "Ozenir, Ekin Baris"]
[Black "Sredojevic, Ivan"]
[Result "1-0"]
[ECO "A41"]
[WhiteElo "2300"]
[BlackElo "2298"]
[Annotator "NA"]
[PlyCount "115"]
[EventDate "2018.??.??"]
[EventCountry "SRB"]
[SourceTitle "playchess.com"]
[Source "ChessBase"]
[SourceQuality "1"]
[TimeControl "40/5400+30:1800+30"]

1. d4 {[%emt 0:00:00]} d6 {[%emt 0:02:47]} 2. e4 {[%emt 0:00:57] Nf} Nf6 {[%emt 0:01:17]} 3. Bd3 {[%emt 0:02:13]} g6 {[%emt 0:00:42]} 4. Nf3 {[%emt 0:00:50]} Bg7 {[%emt 0:00:09]} 5. c3 {[%emt 0:01:04]} O-O {[%emt 0:00:08]} 6. O-O {[%emt 0:00:22]} Nc6 {[%emt 0:00:24]} 7. Be3 {[%emt 0:01:44]} e5 {[%emt 0:00:13]} 8. Nbd2 {[%emt 0:02:17] B07: Pirc Defence: Miscellaneous Systems} Ng4 {[%emt 0:01:49]} 9. Bg5 {[%emt 0:01:17]} Bf6 $146 {[%emt 0:00:07]} ({Predecessor:} 9... f6 10. Bh4 h5 11. Bg3 Nh6 12. h3 g5 13. Nc4 Ne7 14. dxe5 dxe5 15. h4 g4 {1-0 (38) Sanal,V (2469)-Shanava,K (2545) Mersin 2016}) 10. Bxf6 {[%emt 0:03:47]} Nxf6 {[%emt 0:00:09]} 11. Re1 {[%emt 0:11:49]} Bg4 {[%emt 0:02:33]} 12. h3 {[%emt 0:02:10]} Bd7 {[%emt 0:08:48]} 13. Bf1 {[%emt 0:06:48]} h6 {[%emt 0:06:09]} 14. Qb3 {[%emt 0:09:23]} b6 {[%emt 0:02:40]} 15. Rad1 {[%emt 0:05:18]} Re8 {[%emt 0:05:27]} 16. Qc2 {[%emt 0:08:13]} a5 {[%emt 0:04:03]} 17. dxe5 {[%emt 0:03:47]} Nxe5 {[%emt 0:02:59]} 18. Nd4 {[%emt 0:07:09]} Qe7 {[%emt 0:03:27]} 19. g3 {[%emt 0:07:51]} Rad8 {[%emt 0:09:20]} 20. Bg2 {[%emt 0:03:43]} h5 {[%emt 0:05:37]} 21. f4 {[%emt 0:06:44]} Nc6 {[%emt 0:00:07]} 22. Nxc6 {[%emt 0:01:15]} Bxc6 {[%emt 0:00:07]} 23. b4 {[%emt 0:03:37]} Ba8 {[%emt 0:09:40]} 24. Kh2 {[%emt 0:03:30]} Nh7 {[%emt 0:08:01]} 25. bxa5 {[%emt 0:01:18] bxa} bxa5 {[%emt 0:00:05]} 26. Qd3 {[%emt 0:01:57]} h4 {[%emt 0:00:51]} 27. g4 {[%emt 0:01:07]} g5 {[%emt 0:01:18]} 28. Rf1 {[%emt 0:02:21]} d5 {[%emt 0:03:37]} 29. e5 {[%emt 0:00:56]} gxf4 {[%emt 0:00:31]} 30. Rde1 {[%emt 0:00:23]} f6 {[%emt 0:08:11] [#]} (30... d4 $11) 31. e6 {[%emt 0:00:45]} (31. Nf3 $1 $16) 31... Qd6 {[%emt 0:03:08]} 32. Nf3 {[%emt 0:00:32]} Kh8 {[%emt 0:03:56]} 33. Qf5 {[%emt 0:00:34]} d4 {[%emt 0:00:16]} 34. cxd4 {[%emt 0:00:32]} Bd5 {[%emt 0:00:24]} 35. e7 {[%emt 0:00:27]} Rxe7 {[%emt 0:00:23]} 36. Rxe7 {[%emt 0:00:05]} Qxe7 {[%emt 0:00:03]} 37. Nxh4 {[%emt 0:00:33]} Qe3 {[%emt 0:04:18]} 38. Rxf4 {[%emt 0:01:03]} Bxg2 {[%emt 0:00:19]} 39. Nxg2 {[%emt 0:00:06]} Qd2 {[%emt 0:00:07]} 40. Re4 {[%emt 0:00:00]} Qg5 {[%emt 0:00:00]} 41. h4 {[%emt 0:08:09]} Qxf5 {[%emt 0:03:23]} 42. gxf5 {[%emt 0:00:10]} Rb8 {[%emt 0:00:01]} (42... Kg8 $142 43. Nf4 c6) 43. Nf4 {[%emt 0:03:21]} a4 {[%emt 0:04:05]} 44. Kg3 {[%emt 0:05:09]} Nf8 $18 {[%emt 0:03:20]} 45. d5 {[%emt 0:01:50]} Nd7 {[%emt 0:00:44]} 46. Rxa4 {[%emt 0:01:46]} Ne5 {[%emt 0:01:42]} 47. h5 {[%emt 0:01:25]} Kg7 {[%emt 0:00:09]} 48. Ra7 {[%emt 0:01:02]} Kh6 {[%emt 0:00:11]} 49. Rxc7 {[%emt 0:01:41]} Ra8 {[%emt 0:00:02]} 50. Rc2 {[%emt 0:01:07]} Ra3+ {[%emt 0:00:11]} 51. Kg2 {[%emt 0:01:48]} Kg5 {[%emt 0:00:18]} 52. Ne6+ {[%emt 0:03:03]} Kxh5 {[%emt 0:01:51]} 53. d6 {[%emt 0:01:58]} Kg4 {[%emt 0:01:21]} 54. Nc5 {[%emt 0:01:43]} Rg3+ {[%emt 0:01:18]} 55. Kf1 {[%emt 0:00:54]} Kxf5 {[%emt 0:01:19]} 56. Rf2+ {[%emt 0:00:28]} Kg6 {[%emt 0:00:38]} 57. d7 {[%emt 0:00:20]} Nc6 {[%emt 0:00:08]} 58. Ne4 {[%emt 0:00:39]} 1-0

[Event "Orbis IM 2018"]
[Site "Paracin"]
[Date "2018.07.16"]
[Round "4"]
[White "Bergsson, Stefan"]
[Black "Isha, Sharma"]
[Result "0-1"]
[ECO "C41"]
[WhiteElo "2192"]
[BlackElo "2062"]
[Annotator "NA"]
[PlyCount "64"]
[EventDate "2018.??.??"]
[EventCountry "SRB"]
[SourceTitle "playchess.com"]
[Source "ChessBase"]
[SourceQuality "1"]
[TimeControl "40/5400+30:1800+30"]

1. e4 {[%emt 0:00:00]} d6 {[%emt 0:00:00]} 2. d4 {[%emt 0:00:00]} Nf6 {[%emt 0:00:00]} 3. Nc3 {[%emt 0:00:16]} e5 {[%emt 0:00:00]} 4. Nf3 {[%emt 0:00:10]} Nbd7 {[%emt 0:00:06]} 5. Bc4 {[%emt 0:00:26]} Be7 {[%emt 0:00:07]} 6. a4 {[%emt 0:00:10]} O-O {[%emt 0:00:36]} 7. O-O {[%emt 0:00:10]} c6 {[%emt 0:00:06]} 8. Qe2 {[%emt 0:01:06]} exd4 {[%emt 0:04:00]} 9. Nxd4 {[%emt 0:00:12]} Ne5 {[%emt 0:00:45] C41: Philidor-Verteidigung} (9... Re8 10. Ba2 Bf8 11. Qf3 Nc5 12. Bg5 h6 13. Bxf6 Qxf6 14. Qxf6 gxf6 15. Rfe1 Bg7 16. a5 f5 17. Nxf5 Bxf5 18. exf5 d5 19. Kf1 {½-½ (32) Jerez Perez,A (2432)-Herraiz Hidalgo,H (2430) Barcelona 2018}) 10. Ba2 {[%emt 0:00:39]} Re8 {[%emt 0:00:50]} 11. h3 {[%emt 0:02:27]} Bf8 {[%emt 0:02:09]} 12. Bg5 $146 {[%emt 0:11:58]} ({Vorgänger:} 12. Rd1 Ng6 13. Qd3 Qa5 14. Be3 Bd7 15. f4 Qb4 16. Bd2 Qc5 17. b4 {1-0 (39) Reschke,H-Bocksberger,S Germany 1995}) 12... h6 {[%emt 0:04:26]} 13. Bxf6 {[%emt 0:03:28]} Qxf6 {[%emt 0:00:06]} 14. f4 {[%emt 0:00:12]} Ng6 {[%emt 0:05:41]} 15. e5 {[%emt 0:00:14]} Qd8 {[%emt 0:05:26]} 16. e6 {[%emt 0:18:50]} Nh8 {[%emt 0:07:00]} 17. f5 {[%emt 0:10:13]} d5 {[%emt 0:02:34]} 18. Rae1 {[%emt 0:00:35]} Bc5 {[%emt 0:02:55]} 19. exf7+ {[%emt 0:09:04]} Kxf7 {[%emt 0:00:07]} 20. Qh5+ {[%emt 0:05:00]} Kf8 {[%emt 0:00:06]} 21. Rxe8+ {[%emt 0:00:17]} Qxe8 {[%emt 0:00:04]} 22. Qh4 {[%emt 0:03:30]} Qe3+ {[%emt 0:24:11]} (22... Nf7 $17 23. Kh1 Qe5) 23. Kh1 {[%emt 0:00:52]} Bxd4 {[%emt 0:18:41]} 24. Nxd5 {[%emt 0:00:49]} cxd5 {[%emt 0:01:11]} 25. Qd8+ {[%emt 0:00:34]} Qe8 {[%emt 0:00:05]} 26. Qxd5 {[%emt 0:02:05]} Be5 {[%emt 0:03:51]} 27. Re1 {[%emt 0:20:51]} Nf7 {[%emt 0:00:21]} 28. Qc5+ {[%emt 0:04:53]} Qe7 {[%emt 0:00:33]} 29. Qc4 {[%emt 0:00:26]} Qc7 {[%emt 0:01:58]} 30. Qg4 {[%emt 0:01:20]} Bd7 {[%emt 0:06:34]} 31. Qg6 $19 {[%emt 0:00:53]} Be8 {[%emt 0:01:20]} 32. Qh7 {[%emt 0:00:16]} Rd8 {[%emt 0:00:48]} 0-1

[Event "Orbis IM 2018"]
[Site "Paracin"]
[Date "2018.07.17"]
[Round "5"]
[White "Milanovic, Slavisa"]
[Black "Bergsson, Stefan"]
[Result "1-0"]
[ECO "A30"]
[WhiteElo "2370"]
[BlackElo "2192"]
[Annotator "NA"]
[PlyCount "58"]
[EventDate "2018.??.??"]
[EventCountry "SRB"]
[SourceTitle "playchess.com"]
[Source "ChessBase"]
[SourceQuality "1"]
[TimeControl "40/5400+30:1800+30"]

1. c4 {[%emt 0:00:00]} c5 {[%emt 0:01:57]} 2. Nf3 {[%emt 0:00:03]} Nc6 {[%emt 0:00:48]} 3. d4 {[%emt 0:00:20]} cxd4 {[%emt 0:01:46]} 4. Nxd4 {[%emt 0:00:11]} Nf6 {[%emt 0:04:54]} 5. Nc3 {[%emt 0:01:43]} Qb6 {[%emt 0:00:33]} 6. Nc2 {[%emt 0:16:00]} e6 {[%emt 0:02:30]} 7. g3 {[%emt 0:06:50]} d5 {[%emt 0:03:35] A33: Symmetrical English: 2 Nf3 Nf6 3 d4 cxd4 4 Nxd4 e6 5 Nc3 Nc6} 8. cxd5 {[%emt 0:06:36]} (8. Bg2 dxc4 9. Ne3 Ne5 10. Nxc4 Nxc4 11. Qa4+ Bd7 12. Qxc4 Bc5 13. O-O Rc8 14. Qh4 Bc6 15. Bh6 gxh6 16. Qxf6 {½-½ (32) Dubov,D (2660)-Rodshtein,M (2698) Sochi 2017}) 8... exd5 {[%emt 0:01:09]} 9. Nxd5 {[%emt 0:09:16]} Nxd5 {[%emt 0:00:37]} 10. Qxd5 {[%emt 0:00:13]} Be6 {[%emt 0:00:39]} 11. Qe4 {[%emt 0:04:57]} Bc5 $146 {[%emt 0:11:28]} ({Predecessor:} 11... Bb4+ 12. Nxb4 Qxb4+ 13. Qxb4 Nxb4 14. Kd1 O-O 15. Bd2 {0-1 (22) Blees,A-Danner,G (2410) Caorle 1981}) 12. Be3 {[%emt 0:05:55]} Qxb2 {[%emt 0:10:23]} 13. Bh3 {[%emt 0:12:55]} Bxe3 {[%emt 0:29:55]} 14. Bxe6 {[%emt 0:03:29]} Qc3+ {[%emt 0:02:20]} 15. Kf1 {[%emt 0:00:41]} fxe6 {[%emt 0:04:11]} 16. fxe3 {[%emt 0:05:38]} O-O+ {[%emt 0:00:11]} 17. Kg2 {[%emt 0:00:12]} Rad8 {[%emt 0:07:04]} 18. Rhf1 {[%emt 0:04:16]} e5 {[%emt 0:05:24]} 19. Rxf8+ {[%emt 0:04:46]} Rxf8 {[%emt 0:00:17]} 20. Rd1 {[%emt 0:00:18]} Na5 {[%emt 0:03:39]} 21. Rd7 {[%emt 0:08:42]} Qc8 {[%emt 0:02:17]} 22. Qd5+ {[%emt 0:00:54]} Kh8 {[%emt 0:00:03]} 23. Qd6 {[%emt 0:00:47]} Nc4 {[%emt 0:03:13]} 24. Qc7 $11 {[%emt 0:01:47]} Qe8 {[%emt 0:00:21]} 25. Re7 {[%emt 0:02:15]} Qb5 {[%emt 0:00:47]} 26. Rxg7 {[%emt 0:00:52]} Qd5+ {[%emt 0:01:59]} 27. Kh3 {[%emt 0:00:42]} Qe6+ {[%emt 0:00:01]} 28. Rg4 {[%emt 0:01:55]} Rg8 {[%emt 0:00:42]} 29. Qxc4 {[%emt 0:00:08]} Qh6+ {[%emt 0:01:47]} 1-0

[Event "Orbis IM 2018"]
[Site "Paracin"]
[Date "2018.07.17"]
[Round "5"]
[White "Sredojevic, Ivan"]
[Black "Avalyan, Artur"]
[Result "1/2-1/2"]
[ECO "C07"]
[WhiteElo "2298"]
[BlackElo "2315"]
[Annotator "ChessBase"]
[PlyCount "84"]
[EventDate "2018.??.??"]
[EventCountry "SRB"]
[SourceTitle "playchess.com"]
[Source "ChessBase"]
[SourceQuality "1"]
[TimeControl "40/5400+30:1800+30"]

1. e4 {[%emt 0:00:00]} e6 {[%emt 0:00:00]} 2. d4 {[%emt 0:00:00]} d5 {[%emt 0:00:00]} 3. Nd2 {[%emt 0:00:00]} c5 {[%emt 0:00:07]} 4. Ngf3 {[%emt 0:00:00]} Nf6 {[%emt 0:00:41]} 5. exd5 {[%emt 0:00:04]} exd5 {[%emt 0:00:05]} 6. Bb5+ {[%emt 0:00:41]} Bd7 {[%emt 0:00:04]} 7. Qe2+ {[%emt 0:00:47]} Be7 {[%emt 0:00:05]} 8. dxc5 {[%emt 0:01:21]} O-O {[%emt 0:00:12]} 9. Bxd7 {[%emt 0:00:26]} Nbxd7 {[%emt 0:00:11]} 10. O-O {[%emt 0:00:37]} Nxc5 {[%emt 0:00:43]} 11. Nb3 {[%emt 0:00:39]} Nce4 {[%emt 0:00:48]} 12. Be3 {[%emt 0:00:13]} Re8 {[%emt 0:03:16]} 13. Rad1 {[%emt 0:03:00]} Qc7 {[%emt 0:02:02]} 14. Nbd4 {[%emt 0:02:29]} a6 {[%emt 0:03:01]} 15. Rfe1 {[%emt 0:03:48]} Rad8 {[%emt 0:02:19]} 16. h3 {[%emt 0:13:49]} Bf8 {[%emt 0:02:27]} 17. c3 {[%emt 0:01:01]} Nd6 {[%emt 0:08:58]} 18. Qc2 {[%emt 0:01:17]} Nfe4 {[%emt 0:01:30]} 19. Bf4 {[%emt 0:00:46]} Qb6 {[%emt 0:01:51]} 20. Ng5 {[%emt 0:01:05]} g6 {[%emt 0:08:15]} 21. Nxe4 {[%emt 0:07:26]} Nxe4 {[%emt 0:00:30]} 22. Qb3 {[%emt 0:00:33]} Qf6 {[%emt 0:02:42]} 23. Be3 {[%emt 0:00:02]} b5 {[%emt 0:10:11]} 24. Nf3 {[%emt 0:00:24]} Qc6 {[%emt 0:00:53]} 25. Bd4 {[%emt 0:02:37]} a5 {[%emt 0:11:43]} 26. Ne5 {[%emt 0:03:20]} Qb7 {[%emt 0:00:12]} 27. Ng4 {[%emt 0:03:12]} Bg7 {[%emt 0:02:57]} 28. Bxg7 {[%emt 0:01:33]} Kxg7 {[%emt 0:00:04]} 29. Ne3 {[%emt 0:06:45]} Nf6 {[%emt 0:01:55]} 30. Rd4 {[%emt 0:07:21]} Re4 {[%emt 0:06:08]} 31. Red1 {[%emt 0:00:06]} Rxd4 {[%emt 0:08:57]} 32. Rxd4 {[%emt 0:00:02]} Rd7 {[%emt 0:00:07]} 33. Qc2 {[%emt 0:00:16]} Re7 {[%emt 0:03:53]} 34. Qd2 {[%emt 0:00:05]} Re5 {[%emt 0:00:26]} 35. a4 {[%emt 0:08:22]} Qc6 {[%emt 0:02:16]} 36. axb5 {[%emt 0:02:06]} Qxb5 {[%emt 0:00:05]} 37. Rf4 {[%emt 0:00:10]} Nd7 {[%emt 0:13:05]} 38. Ng4 {[%emt 0:02:05]} Re6 {[%emt 0:00:24]} 39. Rd4 {[%emt 0:02:06]} Nb6 {[%emt 0:01:33]} 40. c4 {[%emt 0:00:00]} Nxc4 {[%emt 0:00:00]} 41. Qc3 {[%emt 0:06:24]} f6 {[%emt 0:09:01]} 42. b3 {[%emt 0:01:07]} Nd6 {[%emt 0:16:19]} 1/2-1/2

[Event "Orbis IM 2018"]
[Site "Paracin"]
[Date "2018.07.17"]
[Round "5"]
[White "Scott, Luke"]
[Black "Markovic, Milan D"]
[Result "1-0"]
[ECO "A52"]
[WhiteElo "1887"]
[BlackElo "2312"]
[Annotator "NA"]
[PlyCount "91"]
[EventDate "2018.??.??"]
[EventCountry "SRB"]
[SourceTitle "playchess.com"]
[Source "ChessBase"]
[SourceQuality "1"]
[TimeControl "40/5400+30:1800+30"]

1. d4 {[%emt 0:00:00]} Nf6 {[%emt 0:00:00]} 2. c4 {[%emt 0:00:00]} e5 {[%emt 0:00:00]} 3. dxe5 {[%emt 0:00:53]} Ng4 {[%emt 0:00:12]} 4. a3 {[%emt 0:20:58]} Nc6 {[%emt 0:04:56]} 5. Nf3 {[%emt 0:05:19]} Bc5 {[%emt 0:01:55]} 6. e3 {[%emt 0:00:35]} a5 {[%emt 0:00:08]} 7. Be2 {[%emt 0:03:29]} O-O {[%emt 0:02:05] A52: Budapest Gambit} 8. Nbd2 {[%emt 0:01:53]} Bxe3 $146 {[%emt 0:11:53]} ({Predecessor:} 8... Re8 9. O-O Ngxe5 10. Nxe5 Nxe5 11. b3 d5 12. Bb2 dxc4 13. Nxc4 Nxc4 14. Bxc4 Qxd1 15. Rfxd1 Bg4 16. Rd5 Be7 17. Re5 Kf8 18. h3 Bd7 {0-1 (29) Hetey,L (2410)-Jugelt,T (2375) Poznan 1996}) 9. fxe3 {[%emt 0:01:06]} Nxe3 {[%emt 0:00:06]} 10. Qb3 {[%emt 0:00:41]} Nxg2+ {[%emt 0:00:08]} 11. Kf2 {[%emt 0:12:23]} a4 {[%emt 0:01:05]} 12. Qc3 {[%emt 0:01:05]} Nf4 {[%emt 0:03:42]} 13. Re1 {[%emt 0:00:27]} d6 {[%emt 0:08:39]} 14. exd6 {[%emt 0:04:19]} Nh3+ {[%emt 0:02:20]} 15. Kg2 {[%emt 0:01:50]} Nf4+ {[%emt 0:05:52]} 16. Kf2 {[%emt 0:01:19]} Re8 {[%emt 0:15:06]} 17. dxc7 {[%emt 0:09:01]} Qxc7 {[%emt 0:17:30]} 18. Nf1 {[%emt 0:08:25]} Nh3+ {[%emt 0:01:05]} 19. Kg2 {[%emt 0:00:18]} Bg4 {[%emt 0:01:40]} 20. Bd2 {[%emt 0:03:28]} Ne7 {[%emt 0:01:49]} 21. Ng1 {[%emt 0:09:49]} Qc6+ {[%emt 0:14:47]} 22. Bf3 {[%emt 0:01:47]} Bxf3+ {[%emt 0:00:37]} 23. Qxf3 {[%emt 0:01:07]} Nxg1 {[%emt 0:00:13]} 24. Qxc6 {[%emt 0:00:20]} Nxc6 {[%emt 0:00:04]} 25. Ne3 $2 {[%emt 0:06:36]} (25. Rxe8+ $18 Rxe8 26. Kxg1) 25... Rad8 {[%emt 0:02:41]} 26. Rad1 {[%emt 0:00:18]} Nd4 {[%emt 0:02:28]} 27. Rxg1 {[%emt 0:01:01]} Nb3 {[%emt 0:00:07]} 28. Bc3 {[%emt 0:00:31]} f6 {[%emt 0:00:44]} 29. Rxd8 {[%emt 0:00:22]} Rxd8 {[%emt 0:00:05]} 30. Rd1 {[%emt 0:00:07]} Re8 $18 {[%emt 0:00:04]} 31. Kf3 {[%emt 0:00:21]} Nc5 {[%emt 0:00:10]} 32. Bb4 {[%emt 0:01:18]} Ne6 {[%emt 0:00:36]} 33. h4 {[%emt 0:00:49]} g5 {[%emt 0:00:20]} 34. Ng4 {[%emt 0:00:47]} f5 {[%emt 0:03:11]} 35. Nf6+ {[%emt 0:00:22]} Kf7 {[%emt 0:00:05]} 36. Nxe8 {[%emt 0:00:11]} g4+ {[%emt 0:00:04]} 37. Kf2 {[%emt 0:00:17]} Kxe8 {[%emt 0:00:10]} 38. Re1 {[%emt 0:01:00]} Kf7 {[%emt 0:00:05]} 39. Rxe6 {[%emt 0:01:06]} Kxe6 {[%emt 0:00:05]} 40. Ke3 {[%emt 0:00:00]} h5 {[%emt 0:00:00]} 41. Kf4 {[%emt 0:00:07]} b6 {[%emt 0:00:38]} 42. Bc3 {[%emt 0:00:09]} Kd6 {[%emt 0:00:06]} 43. Bd4 {[%emt 0:00:20]} Kc6 {[%emt 0:00:06]} 44. Kxf5 {[%emt 0:00:13]} b5 {[%emt 0:00:05]} 45. cxb5+ {[%emt 0:01:09]} Kxb5 {[%emt 0:00:09]} 46. Be5 {[%emt 0:00:18]} 1-0

[Event "Orbis IM 2018"]
[Site "Paracin"]
[Date "2018.07.18"]
[Round "6"]
[White "Markovic, Milan D"]
[Black "Brankovic, Dejan"]
[Result "1/2-1/2"]
[ECO "B31"]
[WhiteElo "2312"]
[BlackElo "2377"]
[Annotator "NA"]
[PlyCount "34"]
[EventDate "2018.??.??"]
[EventCountry "SRB"]
[SourceTitle "playchess.com"]
[Source "ChessBase"]
[SourceQuality "1"]
[TimeControl "40/5400+30:1800+30"]

{[%evp 8,34,41,32767,32767,32767,32767,32767,32767,32767,32767,32767,32767,32767,32767,32767,2,32767,-30,32767,-9,-19,22,22,25,36,44,16,47]} 1. e4 c5 2. Nf3 Nc6 3. Bb5 g6 4. Bxc6 dxc6 {LiveBook: 2903 Partien} 5. d3 Bg7 6. Nc3 e5 7. Be3 Qe7 8. h3 Nf6 9. Qd2 O-O 10. Bh6 Nh5 {B31: Sicilian: 2...Nc6 3 Bb5 g6} (10... Bxh6 11. Qxh6 Nh5 12. O-O-O f6 13. g3 b5 14. Nh4 a5 15. f4 b4 16. Ne2 Ng7 17. g4 b3 18. cxb3 {1-0 (43) Iermito,S (2498)-Rodriguez Vila,A (2486) Buenos Aires 2017}) 11. Bxg7 Nxg7 12. O-O-O f6 13. g4 $146 ({Predecessor:} 13. Qh6 Ne6 14. Ne2 a5 15. g4 a4 16. Nh4 Qf7 17. Rdg1 b5 18. Rg3 {0-1 (32) Bakharev,V-Ambartsoumian,A (2355) Podolsk 1990}) 13... Ne6 14. Rdg1 Nd4 15. Nxd4 $1 cxd4 16. Ne2 c5 17. f4 exf4 $14 1/2-1/2